[Event "NJSK 2024 AmBm"]
[Site "Groningen, Netherlands"]
[Date "2024.04.27"]
[Round "1.1"]
[White "Hagen, Carlijn"]
[Black "Verheij, Dana"]
[Result "0-1"]
[TimeControl "90min/40moves + 30min + 30sec/move"]
[WhiteElo "1705"]
[BlackElo "1923"]

1. d4 {[%clk 01:30:53]} {[%emt 00:00:07]} f5 {[%clk 01:30:53]} {[%emt
00:00:07]} 2. Bf4 {[%clk 01:31:14]} {[%emt 00:00:08]} Nf6 {[%clk 01:31:14]}
{[%emt 00:00:10]} 3. e3 {[%clk 01:31:36]} {[%emt 00:00:09]} g6 {[%clk
01:31:22]} {[%emt 00:00:21]} 4. Be2 {[%clk 01:31:52]} {[%emt 00:00:14]} Bg7
{[%clk 01:31:38]} {[%emt 00:00:15]} 5. Nf3 {[%clk 01:31:31]} {[%emt 00:00:51]}
O-O {[%clk 01:31:04]} {[%emt 00:01:04]} 6. c3 {[%clk 01:29:13]} {[%emt
00:02:48]} d6 {[%clk 01:29:51]} {[%emt 00:01:44]} 7. Nbd2 {[%clk 01:24:25]}
{[%emt 00:05:17]} e6 {[%clk 01:27:22]} {[%emt 00:02:59]} 8. Qc2 {[%clk
01:19:58]} {[%emt 00:04:56]} Qe7 {[%clk 01:25:20]} {[%emt 00:02:32]} 9. h4
{[%clk 01:06:37]} {[%emt 00:13:51]} h6 {[%clk 01:21:51]} {[%emt 00:03:59]} 10.
Nf1 {[%clk 00:59:05]} {[%emt 00:08:03]} Nc6 {[%clk 01:16:18]} {[%emt 00:06:04]}
11. Rd1 {[%clk 00:46:27]} {[%emt 00:13:07]} e5 {[%clk 01:03:48]} {[%emt
00:13:00]} 12. dxe5 {[%clk 00:43:13]} {[%emt 00:03:44]} dxe5 {[%clk 01:01:01]}
{[%emt 00:03:17]} 13. Bh2 {[%clk 00:42:43]} {[%emt 00:01:00]} Ne4 {[%clk
00:52:32]} {[%emt 00:08:59]} 14. Bc4+ {[%clk 00:31:47]} {[%emt 00:11:27]} Be6
{[%clk 00:41:39]} {[%emt 00:11:22]} 15. Bxe6+ {[%clk 00:30:57]} {[%emt
00:01:19]} Qxe6 {[%clk 00:42:07]} {[%emt 00:00:02]} 16. N1d2 {[%clk 00:30:31]}
{[%emt 00:00:56]} Nd6 {[%clk 00:35:00]} {[%emt 00:07:38]} 17. Nb3 {[%clk
00:23:25]} {[%emt 00:07:36]} b6 {[%clk 00:32:58]} {[%emt 00:02:32]} 18. O-O
{[%clk 00:18:15]} {[%emt 00:05:39]} a5 {[%clk 00:30:23]} {[%emt 00:03:06]} 19.
Nc1 {[%clk 00:13:21]} {[%emt 00:05:24]} Qf6 {[%clk 00:22:41]} {[%emt 00:08:12]}
20. Ne2 {[%clk 00:10:18]} {[%emt 00:03:33]} e4 {[%clk 00:20:06]} {[%emt
00:03:05]} 21. Nfd4 {[%clk 00:10:27]} {[%emt 00:00:22]} Ne5 {[%clk 00:19:34]}
{[%emt 00:01:02]} 22. Bxe5 {[%clk 00:09:43]} {[%emt 00:01:13]} Qxe5 {[%clk
00:19:58]} {[%emt 00:00:06]} 23. Nc6 {[%clk 00:09:56]} {[%emt 00:00:17]} Qf6
{[%clk 00:17:30]} {[%emt 00:02:58]} 24. Nf4 {[%clk 00:09:38]} {[%emt 00:00:48]}
Kh7 {[%clk 00:16:34]} {[%emt 00:01:26]} 25. Nd5 {[%clk 00:08:02]} {[%emt
00:02:07]} Qxh4 {[%clk 00:08:16]} {[%emt 00:08:48]} 26. g3 {[%clk 00:07:25]}
{[%emt 00:01:07]} Qh3 {[%clk 00:07:41]} {[%emt 00:01:05]} 27. Nf4 {[%clk
00:06:34]} {[%emt 00:01:22]} Qg4 {[%clk 00:08:06]} {[%emt 00:00:04]} 28. Rd2
{[%clk 00:05:05]} {[%emt 00:01:59]} Nf7 {[%clk 00:07:37]} {[%emt 00:00:59]} 29.
Rd7 {[%clk 00:05:01]} {[%emt 00:00:35]} Ng5 {[%clk 00:04:09]} {[%emt 00:03:58]}
30. Ne5 {[%clk 00:04:54]} {[%emt 00:00:36]} Nf3+ {[%clk 00:04:29]} {[%emt
00:00:11]} 31. Nxf3 {[%clk 00:05:20]} {[%emt 00:00:04]} exf3 {[%clk 00:04:40]}
{[%emt 00:00:18]} 32. Kh2 {[%clk 00:04:32]} {[%emt 00:01:19]} g5 {[%clk
00:04:26]} {[%emt 00:00:43]} 33. Nh3 {[%clk 00:04:51]} {[%emt 00:00:11]} Qh5
{[%clk 00:04:21]} {[%emt 00:00:35]} 34. Rh1 {[%clk 00:01:56]} {[%emt 00:03:26]}
g4 {[%clk 00:04:43]} {[%emt 00:00:07]} 35. Kg1 {[%clk 00:02:22]} {[%emt
00:00:05]} gxh3 {[%clk 00:05:09]} {[%emt 00:00:04]} 36. Rxc7 {[%clk 00:02:46]}
{[%emt 00:00:06]} Rf7 {[%clk 00:04:28]} {[%emt 00:01:10]} 37. Rxf7 {[%clk
00:02:36]} {[%emt 00:00:41]} Qxf7 {[%clk 00:04:57]} {[%emt 00:00:01]} 38. Rxh3
{[%clk 00:02:53]} {[%emt 00:00:12]} Rd8 {[%clk 00:05:08]} {[%emt 00:00:19]} 39.
g4 {[%clk 00:02:26]} {[%emt 00:00:58]} Qd5 {[%clk 00:04:10]} {[%emt 00:01:28]}
40. gxf5 {[%clk 00:00:55]} {[%emt 00:02:01]} Qd1+ {[%clk 00:04:33]} {[%emt
00:00:07]} 41. Qxd1 {[%clk 00:01:20]} {[%emt 00:00:04]} Rxd1+ {[%clk 00:04:59]}
{[%emt 00:00:04]} 42. Kh2 {[%clk 00:01:38]} {[%emt 00:00:12]} Be5+ {[%clk
00:05:25]} {[%emt 00:00:04]} 0-1

[Event "NJSK 2024 AmBm"]
[Site "Groningen, Netherlands"]
[Date "2024.04.27"]
[Round "1.2"]
[White "Westerhof, Fleur"]
[Black "Liu, Chia-Yun"]
[Result "1-0"]
[TimeControl "90min/40moves + 30min + 30sec/move"]
[WhiteElo "1916"]
[BlackElo "1704"]

1. e4 {[%clk 01:30:58]} {[%emt 00:00:01]} e5 {[%clk 01:30:53]} {[%emt
00:00:07]} 2. Nf3 {[%clk 01:31:21]} {[%emt 00:00:07]} Nc6 {[%clk 01:31:13]}
{[%emt 00:00:11]} 3. d4 {[%clk 01:31:36]} {[%emt 00:00:15]} exd4 {[%clk
01:31:22]} {[%emt 00:00:21]} 4. Bc4 {[%clk 01:31:58]} {[%emt 00:00:09]} Bc5
{[%clk 01:25:12]} {[%emt 00:06:40]} 5. c3 {[%clk 01:31:28]} {[%emt 00:01:00]}
Nf6 {[%clk 01:21:54]} {[%emt 00:03:47]} 6. e5 {[%clk 01:28:08]} {[%emt
00:03:50]} d5 {[%clk 01:08:07]} {[%emt 00:14:17]} 7. Bb5 {[%clk 01:26:10]}
{[%emt 00:02:29]} Ne4 {[%clk 01:05:29]} {[%emt 00:03:08]} 8. cxd4 {[%clk
01:25:01]} {[%emt 00:01:39]} Bb6 {[%clk 01:04:02]} {[%emt 00:01:57]} 9. Be3
{[%clk 01:19:48]} {[%emt 00:05:42]} O-O {[%clk 01:00:44]} {[%emt 00:03:49]} 10.
Nc3 {[%clk 01:15:06]} {[%emt 00:05:12]} Bg4 {[%clk 00:56:19]} {[%emt 00:04:55]}
11. h3 {[%clk 01:13:17]} {[%emt 00:02:19]} Bh5 {[%clk 00:54:34]} {[%emt
00:02:15]} 12. Qc2 {[%clk 01:04:29]} {[%emt 00:09:18]} Ba5 {[%clk 00:38:51]}
{[%emt 00:16:13]} 13. O-O {[%clk 00:52:44]} {[%emt 00:12:14]} Bxc3 {[%clk
00:38:06]} {[%emt 00:01:16]} 14. bxc3 {[%clk 00:52:58]} {[%emt 00:00:15]} Bxf3
{[%clk 00:36:45]} {[%emt 00:01:51]} 15. gxf3 {[%clk 00:52:33]} {[%emt
00:00:55]} Ng5 {[%clk 00:36:19]} {[%emt 00:00:56]} 16. Qf5 {[%clk 00:47:33]}
{[%emt 00:05:31]} f6 {[%clk 00:29:05]} {[%emt 00:07:44]} 17. h4 {[%clk
00:37:30]} {[%emt 00:10:32]} fxe5 {[%clk 00:25:11]} {[%emt 00:04:24]} 18. Qxg5
{[%clk 00:35:28]} {[%emt 00:02:32]} Qxg5+ {[%clk 00:25:01]} {[%emt 00:00:40]}
19. hxg5 {[%clk 00:34:39]} {[%emt 00:01:19]} exd4 {[%clk 00:23:25]} {[%emt
00:02:06]} 20. Bxc6 {[%clk 00:31:32]} {[%emt 00:03:36]} bxc6 {[%clk 00:23:34]}
{[%emt 00:00:21]} 21. Bxd4 {[%clk 00:28:54]} {[%emt 00:03:08]} Rxf3 {[%clk
00:22:58]} {[%emt 00:01:06]} 22. Rab1 {[%clk 00:27:26]} {[%emt 00:01:58]} Rf4
{[%clk 00:20:50]} {[%emt 00:02:38]} 23. Kh2 {[%clk 00:26:17]} {[%emt 00:01:38]}
a6 {[%clk 00:18:26]} {[%emt 00:02:56]} 24. Rb7 {[%clk 00:24:59]} {[%emt
00:01:47]} Rf7 {[%clk 00:18:04]} {[%emt 00:00:52]} 25. Rfb1 {[%clk 00:23:33]}
{[%emt 00:01:56]} g6 {[%clk 00:15:50]} {[%emt 00:02:44]} 26. Rb8+ {[%clk
00:23:00]} {[%emt 00:01:03]} Rxb8 {[%clk 00:16:12]} {[%emt 00:00:08]} 27. Rxb8+
{[%clk 00:23:22]} {[%emt 00:00:08]} Rf8 {[%clk 00:16:36]} {[%emt 00:00:07]} 28.
Rb7 {[%clk 00:21:26]} {[%emt 00:02:25]} Rf7 {[%clk 00:15:56]} {[%emt 00:01:10]}
29. Ra7 {[%clk 00:21:29]} {[%emt 00:00:27]} Re7 {[%clk 00:14:21]} {[%emt
00:02:06]} 30. Rxa6 {[%clk 00:21:26]} {[%emt 00:00:33]} Re6 {[%clk 00:13:45]}
{[%emt 00:01:06]} 31. Ra8+ {[%clk 00:21:31]} {[%emt 00:00:25]} Kf7 {[%clk
00:14:08]} {[%emt 00:00:07]} 32. Rh8 {[%clk 00:21:45]} {[%emt 00:00:15]} 1-0

[Event "NJSK 2024 AmBm"]
[Site "Groningen, Netherlands"]
[Date "2024.04.27"]
[Round "1.3"]
[White "Luijkx, Dagmar"]
[Black "Damen, Josephine"]
[Result "0-1"]
[TimeControl "90min/40moves + 30min + 30sec/move"]
[WhiteElo "1701"]
[BlackElo "1890"]

1. e4 {[%clk 01:30:56]} {[%emt 00:00:04]} e5 {[%clk 01:30:45]} {[%emt
00:00:15]} 2. Nc3 {[%clk 01:30:41]} {[%emt 00:00:45]} Nf6 {[%clk 01:31:05]}
{[%emt 00:00:09]} 3. f4 {[%clk 01:30:49]} {[%emt 00:00:22]} d5 {[%clk
01:31:26]} {[%emt 00:00:10]} 4. fxe5 {[%clk 01:29:26]} {[%emt 00:01:53]} Nxe4
{[%clk 01:31:44]} {[%emt 00:00:12]} 5. Nf3 {[%clk 01:26:20]} {[%emt 00:03:36]}
Be7 {[%clk 01:28:13]} {[%emt 00:04:00]} 6. g3 {[%clk 01:15:28]} {[%emt
00:11:24]} O-O {[%clk 01:15:35]} {[%emt 00:13:06]} 7. Bg2 {[%clk 00:58:44]}
{[%emt 00:17:13]} Bg4 {[%clk 00:51:28]} {[%emt 00:24:38]} 8. d3 {[%clk
00:51:55]} {[%emt 00:07:20]} Nxc3 {[%clk 00:47:30]} {[%emt 00:04:29]} 9. bxc3
{[%clk 00:52:15]} {[%emt 00:00:10]} f6 {[%clk 00:43:14]} {[%emt 00:04:45]} 10.
h3 {[%clk 00:36:00]} {[%emt 00:16:45]} Bxf3 {[%clk 00:41:38]} {[%emt 00:02:05]}
11. Bxf3 {[%clk 00:35:14]} {[%emt 00:01:16]} fxe5 {[%clk 00:39:29]} {[%emt
00:02:39]} 12. O-O {[%clk 00:34:49]} {[%emt 00:00:55]} c6 {[%clk 00:35:42]}
{[%emt 00:04:18]} 13. Rb1 {[%clk 00:33:06]} {[%emt 00:02:13]} Qc7 {[%clk
00:29:41]} {[%emt 00:06:30]} 14. Bg4 {[%clk 00:31:08]} {[%emt 00:02:28]} Nd7
{[%clk 00:23:43]} {[%emt 00:06:28]} 15. Be3 {[%clk 00:26:01]} {[%emt 00:05:36]}
Nf6 {[%clk 00:21:43]} {[%emt 00:02:30]} 16. Kh2 {[%clk 00:20:20]} {[%emt
00:06:11]} b6 {[%clk 00:18:03]} {[%emt 00:04:10]} 17. Bf5 {[%clk 00:15:54]}
{[%emt 00:04:56]} Qd6 {[%clk 00:13:27]} {[%emt 00:05:07]} 18. Qc1 {[%clk
00:13:12]} {[%emt 00:03:12]} g6 {[%clk 00:12:17]} {[%emt 00:01:40]} 19. Bh6
{[%clk 00:12:35]} {[%emt 00:01:06]} Rf7 {[%clk 00:08:12]} {[%emt 00:04:36]} 20.
Qg5 {[%clk 00:08:26]} {[%emt 00:04:38]} Ne8 {[%clk 00:05:10]} {[%emt 00:03:32]}
21. Qg4 {[%clk 00:08:36]} {[%emt 00:00:19]} Ng7 {[%clk 00:05:22]} {[%emt
00:00:18]} 22. Bd7 {[%clk 00:05:47]} {[%emt 00:03:19]} Bf6 {[%clk 00:04:17]}
{[%emt 00:01:36]} 23. Bxg7 {[%clk 00:05:41]} {[%emt 00:00:35]} Kxg7 {[%clk
00:04:37]} {[%emt 00:00:10]} 24. Bc8 {[%clk 00:04:53]} {[%emt 00:01:18]} h5
{[%clk 00:03:59]} {[%emt 00:01:07]} 25. Qa4 {[%clk 00:04:24]} {[%emt 00:01:00]}
Rxc8 {[%clk 00:04:01]} {[%emt 00:00:29]} 26. Kh1 {[%clk 00:03:17]} {[%emt
00:01:37]} Rcf8 {[%clk 00:03:22]} {[%emt 00:01:09]} 27. Rg1 {[%clk 00:03:11]}
{[%emt 00:00:35]} d4 {[%clk 00:03:11]} {[%emt 00:00:41]} 28. g4 {[%clk
00:02:58]} {[%emt 00:00:42]} Qd5+ {[%clk 00:03:09]} {[%emt 00:00:32]} 29. Kh2
{[%clk 00:03:06]} {[%emt 00:00:22]} Bh4 {[%clk 00:03:10]} {[%emt 00:00:29]} 30.
Rg2 {[%clk 00:02:30]} {[%emt 00:01:07]} hxg4 {[%clk 00:01:07]} {[%emt
00:02:33]} 31. hxg4 {[%clk 00:02:20]} {[%emt 00:00:40]} Bg5 {[%clk 00:01:24]}
{[%emt 00:00:13]} 32. c4 {[%clk 00:02:28]} {[%emt 00:00:22]} Rh8+ {[%clk
00:01:37]} {[%emt 00:00:16]} 33. Kg1 {[%clk 00:02:30]} {[%emt 00:00:27]} Be3+
{[%clk 00:01:58]} {[%emt 00:00:09]} 34. Rf2 {[%clk 00:02:46]} {[%emt 00:00:14]}
Rh1# {[%clk 00:01:49]} {[%emt 00:00:09]} 0-1

[Event "NJSK 2024 AmBm"]
[Site "Groningen, Netherlands"]
[Date "2024.04.27"]
[Round "1.4"]
[White "Gergin, Isafara"]
[Black "Ganeshram, Nirupa"]
[Result "1-0"]
[TimeControl "90min/40moves + 30min + 30sec/move"]
[WhiteElo "1888"]
[BlackElo "1696"]

1. e4 {[%clk 01:30:57]} {[%emt 00:00:02]} c5 {[%clk 01:30:51]} {[%emt
00:00:09]} 2. Nf3 {[%clk 01:31:20]} {[%emt 00:00:07]} d6 {[%clk 01:31:12]}
{[%emt 00:00:10]} 3. d4 {[%clk 01:31:39]} {[%emt 00:00:11]} cxd4 {[%clk
01:31:29]} {[%emt 00:00:13]} 4. Nxd4 {[%clk 01:32:03]} {[%emt 00:00:06]} Nf6
{[%clk 01:31:43]} {[%emt 00:00:16]} 5. Nc3 {[%clk 01:32:19]} {[%emt 00:00:14]}
g6 {[%clk 01:31:50]} {[%emt 00:00:22]} 6. Bc4 {[%clk 01:32:35]} {[%emt
00:00:14]} Bg7 {[%clk 01:31:45]} {[%emt 00:00:36]} 7. O-O {[%clk 01:32:32]}
{[%emt 00:00:32]} O-O {[%clk 01:29:31]} {[%emt 00:02:44]} 8. Re1 {[%clk
01:32:19]} {[%emt 00:00:43]} Nc6 {[%clk 01:29:14]} {[%emt 00:00:48]} 9. Bb3
{[%clk 01:32:21]} {[%emt 00:00:28]} Bd7 {[%clk 01:26:41]} {[%emt 00:03:02]} 10.
Nf3 {[%clk 01:32:10]} {[%emt 00:00:40]} Bg4 {[%clk 01:17:20]} {[%emt 00:09:50]}
11. h3 {[%clk 01:31:49]} {[%emt 00:00:52]} Bxf3 {[%clk 01:16:09]} {[%emt
00:01:41]} 12. Qxf3 {[%clk 01:32:10]} {[%emt 00:00:09]} Nd4 {[%clk 01:07:02]}
{[%emt 00:09:37]} 13. Qd3 {[%clk 01:30:24]} {[%emt 00:02:15]} Nd7 {[%clk
01:00:59]} {[%emt 00:06:34]} 14. Be3 {[%clk 01:18:00]} {[%emt 00:12:54]} Nc5
{[%clk 00:52:26]} {[%emt 00:09:03]} 15. Qd1 {[%clk 01:16:29]} {[%emt 00:02:00]}
Ndxb3 {[%clk 00:48:49]} {[%emt 00:04:08]} 16. axb3 {[%clk 01:14:48]} {[%emt
00:02:11]} a6 {[%clk 00:46:05]} {[%emt 00:03:14]} 17. Bd4 {[%clk 01:03:02]}
{[%emt 00:12:15]} Ne6 {[%clk 00:40:27]} {[%emt 00:06:08]} 18. Bxg7 {[%clk
01:01:36]} {[%emt 00:01:56]} Nxg7 {[%clk 00:36:26]} {[%emt 00:04:31]} 19. Qf3
{[%clk 00:58:26]} {[%emt 00:03:39]} Rc8 {[%clk 00:34:00]} {[%emt 00:02:57]} 20.
e5 {[%clk 00:46:33]} {[%emt 00:12:23]} Rc7 {[%clk 00:17:16]} {[%emt 00:17:14]}
21. Rad1 {[%clk 00:24:06]} {[%emt 00:22:57]} Ne8 {[%clk 00:14:33]} {[%emt
00:03:13]} 22. Qe3 {[%clk 00:16:59]} {[%emt 00:07:36]} e6 {[%clk 00:10:12]}
{[%emt 00:04:51]} 23. exd6 {[%clk 00:15:08]} {[%emt 00:02:21]} Rd7 {[%clk
00:09:10]} {[%emt 00:01:32]} 24. Ne4 {[%clk 00:12:24]} {[%emt 00:03:14]} b5
{[%clk 00:07:34]} {[%emt 00:02:07]} 25. Qg3 {[%clk 00:10:09]} {[%emt 00:02:44]}
a5 {[%clk 00:06:22]} {[%emt 00:01:42]} 26. c4 {[%clk 00:08:26]} {[%emt
00:02:14]} bxc4 {[%clk 00:05:43]} {[%emt 00:01:09]} 27. bxc4 {[%clk 00:08:50]}
{[%emt 00:00:06]} Qb6 {[%clk 00:04:43]} {[%emt 00:01:30]} 28. b3 {[%clk
00:06:28]} {[%emt 00:02:51]} Qc6 {[%clk 00:02:13]} {[%emt 00:02:59]} 29. c5
{[%clk 00:05:32]} {[%emt 00:01:26]} Rb7 {[%clk 00:02:17]} {[%emt 00:00:26]} 30.
Qf3 {[%clk 00:04:42]} {[%emt 00:01:20]} Kg7 {[%clk 00:01:38]} {[%emt 00:01:09]}
31. Qc3+ {[%clk 00:03:28]} {[%emt 00:01:45]} Kg8 {[%clk 00:01:49]} {[%emt
00:00:19]} 32. Ra1 {[%clk 00:03:05]} {[%emt 00:00:53]} Ng7 {[%clk 00:01:08]}
{[%emt 00:01:11]} 33. Nf6+ {[%clk 00:02:31]} {[%emt 00:01:04]} Kh8 {[%clk
00:01:33]} {[%emt 00:00:06]} 34. d7 {[%clk 00:02:24]} {[%emt 00:00:37]} Rc7
{[%clk 00:01:32]} {[%emt 00:00:31]} 35. Ne8 {[%clk 00:02:22]} {[%emt 00:00:31]}
Rxe8 {[%clk 00:01:46]} {[%emt 00:00:16]} 36. dxe8=Q+ {[%clk 00:02:42]} {[%emt
00:00:09]} Qxe8 {[%clk 00:02:16]} 37. Rxa5 {[%clk 00:02:15]} {[%emt 00:00:58]}
Kg8 {[%clk 00:02:21]} {[%emt 00:00:25]} 38. Rea1 {[%clk 00:02:17]} {[%emt
00:00:27]} Rc8 {[%clk 00:02:37]} {[%emt 00:00:14]} 39. b4 {[%clk 00:01:59]}
{[%emt 00:00:48]} Nf5 {[%clk 00:02:43]} {[%emt 00:00:23]} 40. b5 {[%clk
00:01:18]} {[%emt 00:01:11]} Ne7 {[%clk 00:02:54]} {[%emt 00:00:19]} 41. c6
{[%clk 00:00:44]} {[%emt 00:01:03]} Nd5 {[%clk 00:02:01]} {[%emt 00:01:23]} 42.
Qc5 {[%clk 00:25:51]} {[%emt 00:05:23]} Kg7 {[%clk 00:31:42]} {[%emt 00:00:49]}
43. Ra7 {[%clk 00:25:04]} {[%emt 00:01:17]} Qd8 {[%clk 00:31:24]} {[%emt
00:00:47]} 44. Rd7 {[%clk 00:22:35]} {[%emt 00:02:59]} Qf6 {[%clk 00:30:19]}
{[%emt 00:01:35]} 45. Raa7 {[%clk 00:20:38]} {[%emt 00:02:28]} Rf8 {[%clk
00:30:07]} {[%emt 00:00:42]} 46. c7 {[%clk 00:19:38]} {[%emt 00:01:30]} Nxc7
{[%clk 00:28:36]} {[%emt 00:02:01]} 47. Qxc7 {[%clk 00:19:47]} {[%emt
00:00:22]} Qf5 {[%clk 00:28:41]} {[%emt 00:00:24]} 48. Rxf7+ {[%clk 00:18:57]}
{[%emt 00:01:20]} Rxf7 {[%clk 00:29:05]} {[%emt 00:00:06]} 49. Qxf7+ {[%clk
00:19:19]} {[%emt 00:00:08]} Qxf7 {[%clk 00:29:28]} {[%emt 00:00:07]} 50. Rxf7+
{[%clk 00:19:45]} Kxf7 {[%clk 00:29:51]} {[%emt 00:00:12]} 51. b6 {[%clk
00:20:12]} {[%emt 00:00:04]} 1-0

[Event "NJSK 2024 AmBm"]
[Site "Groningen, Netherlands"]
[Date "2024.04.27"]
[Round "1.5"]
[White "Kulikova, Polina"]
[Black "Feng, Elysia"]
[Result "0-1"]
[TimeControl "90min/40moves + 30min + 30sec/move"]
[WhiteElo "1690"]
[BlackElo "1862"]

1. d4 {[%clk 01:30:58]} {[%emt 00:00:02]} d5 {[%clk 01:30:54]} {[%emt
00:00:06]} 2. c4 {[%clk 01:31:25]} {[%emt 00:00:03]} e6 {[%clk 01:31:19]}
{[%emt 00:00:05]} 3. cxd5 {[%clk 01:31:46]} {[%emt 00:00:09]} exd5 {[%clk
01:31:34]} {[%emt 00:00:15]} 4. Nc3 {[%clk 01:32:08]} {[%emt 00:00:08]} Nf6
{[%clk 01:31:58]} {[%emt 00:00:06]} 5. Bg5 {[%clk 01:32:27]} {[%emt 00:00:10]}
Be7 {[%clk 01:32:19]} {[%emt 00:00:08]} 6. e3 {[%clk 01:32:50]} {[%emt
00:00:09]} O-O {[%clk 01:32:24]} {[%emt 00:00:24]} 7. Bd3 {[%clk 01:33:13]}
{[%emt 00:00:06]} h6 {[%clk 01:32:47]} {[%emt 00:00:07]} 8. Bh4 {[%clk
01:33:40]} {[%emt 00:00:04]} c6 {[%clk 01:32:40]} {[%emt 00:00:37]} 9. Nge2
{[%clk 01:33:57]} {[%emt 00:00:13]} Nbd7 {[%clk 01:30:33]} {[%emt 00:02:37]} 10.
f3 {[%clk 01:33:21]} {[%emt 00:01:06]} Nh5 {[%clk 01:25:20]} {[%emt 00:05:43]}
11. Bf2 {[%clk 01:22:22]} {[%emt 00:11:28]} f5 {[%clk 01:15:03]} {[%emt
00:10:48]} 12. Qc2 {[%clk 01:05:12]} {[%emt 00:17:40]} f4 {[%clk 01:09:47]}
{[%emt 00:05:46]} 13. Nxf4 {[%clk 00:51:51]} {[%emt 00:13:51]} Nxf4 {[%clk
01:09:41]} {[%emt 00:00:35]} 14. exf4 {[%clk 00:51:59]} {[%emt 00:00:21]} Rxf4
{[%clk 01:10:00]} {[%emt 00:00:13]} 15. O-O-O {[%clk 00:46:51]} {[%emt
00:05:37]} Rf8 {[%clk 01:00:39]} {[%emt 00:09:50]} 16. Be3 {[%clk 00:36:51]}
{[%emt 00:10:31]} b5 {[%clk 00:56:09]} {[%emt 00:05:00]} 17. f4 {[%clk
00:29:00]} {[%emt 00:08:21]} Nb6 {[%clk 00:54:14]} {[%emt 00:02:25]} 18. b3
{[%clk 00:24:43]} {[%emt 00:04:47]} a5 {[%clk 00:52:04]} {[%emt 00:02:40]} 19.
Kd2 {[%clk 00:20:49]} {[%emt 00:04:24]} Bd6 {[%clk 00:48:05]} {[%emt 00:04:29]}
20. g3 {[%clk 00:19:28]} {[%emt 00:01:51]} Bg4 {[%clk 00:39:18]} {[%emt
00:09:16]} 21. Rde1 {[%clk 00:18:07]} {[%emt 00:01:51]} Qd7 {[%clk 00:39:28]}
{[%emt 00:00:21]} 22. Rhf1 {[%clk 00:17:40]} {[%emt 00:00:57]} a4 {[%clk
00:35:52]} {[%emt 00:04:06]} 23. Ra1 {[%clk 00:15:43]} {[%emt 00:02:26]} Rfe8
{[%clk 00:27:27]} {[%emt 00:08:56]} 24. Bg6 {[%clk 00:13:23]} {[%emt 00:02:49]}
Rf8 {[%clk 00:19:01]} {[%emt 00:08:57]} 25. Bd3 {[%clk 00:12:33]} {[%emt
00:01:19]} Bb4 {[%clk 00:14:07]} {[%emt 00:05:25]} 26. Bh7+ {[%clk 00:06:50]}
{[%emt 00:06:12]} Kh8 {[%clk 00:14:29]} {[%emt 00:00:08]} 27. Qd3 {[%clk
00:06:17]} {[%emt 00:01:03]} Rfd8 {[%clk 00:10:54]} {[%emt 00:04:06]} 28. Kc2
{[%clk 00:01:28]} {[%emt 00:05:18]} Ra5 {[%clk 00:07:30]} {[%emt 00:03:53]} 29.
bxa4 {[%clk 00:01:04]} {[%emt 00:00:55]} Nxa4 {[%clk 00:07:41]} {[%emt
00:00:19]} 30. Nxa4 {[%clk 00:01:01]} {[%emt 00:00:33]} Rxa4 {[%clk 00:08:05]}
{[%emt 00:00:06]} 31. a3 {[%clk 00:00:36]} {[%emt 00:00:55]} Rda8 {[%clk
00:08:03]} {[%emt 00:00:32]} 32. Bc1 {[%clk 00:00:44]} {[%emt 00:00:22]} Bd6
{[%clk 00:07:53]} {[%emt 00:00:40]} 33. Bb2 {[%clk 00:00:51]} {[%emt 00:00:24]}
Qe7 {[%clk 00:05:00]} {[%emt 00:03:24]} 34. Rfe1 {[%clk 00:00:48]} {[%emt
00:00:33]} Qf8 {[%clk 00:05:21]} {[%emt 00:00:08]} 35. Bg6 {[%clk 00:00:48]}
{[%emt 00:00:29]} Bd7 {[%clk 00:05:09]} {[%emt 00:00:43]} 36. Re3 {[%clk
00:00:36]} {[%emt 00:00:42]} b4 {[%clk 00:05:34]} {[%emt 00:00:05]} 37. Bc1
{[%clk 00:00:41]} {[%emt 00:00:25]} bxa3 {[%clk 00:05:45]} {[%emt 00:00:20]} 38.
Ra2 {[%clk 00:01:05]} {[%emt 00:00:05]} Rc4+ {[%clk 00:05:46]} {[%emt
00:00:28]} 39. Kd1 {[%clk 00:00:33]} {[%emt 00:01:03]} Bg4+ {[%clk 00:06:03]}
{[%emt 00:00:13]} 40. Rf3 {[%clk 00:00:38]} {[%emt 00:00:25]} Bxf3+ {[%clk
00:06:13]} {[%emt 00:00:20]} 41. Qxf3 {[%clk 00:01:05]} {[%emt 00:00:02]} Rxd4+
{[%clk 00:06:21]} {[%emt 00:00:23]} 42. Bd3 {[%clk 00:01:32]} {[%emt 00:00:03]}
Qb8 {[%clk 00:03:31]} {[%emt 00:03:20]} 43. Kc2 {[%clk 00:01:30]} {[%emt
00:00:32]} Qb4 {[%clk 00:01:32]} {[%emt 00:02:29]} 44. Bd2 {[%clk 00:01:03]}
{[%emt 00:00:58]} Qa4+ {[%clk 00:29:32]} {[%emt 00:02:31]} 45. Kc3 {[%clk
00:27:17]} {[%emt 00:04:15]} Rc4+ {[%clk 00:29:12]} {[%emt 00:00:50]} 46. Bxc4
{[%emt 00:00:23]} Qxc4# {[%emt 00:00:02]} 47. Kd4 {[%clk 00:26:43]} {[%emt
00:00:03]} 0-1